[Event "Late-Titled-Tuesday-Blitz-January-16-2024"]
[Site "Chess.com"]
[Date "2024.01.16"]
[Round "5"]
[White "FontVella8"]
[Black "Oleksandr_Bortnyk"]
[Result "1-0"]
[WhiteElo "2761"]
[BlackElo "3086"]
[TimeControl "180+1"]
[EndTime "14:51:09 PST"]
[Termination "FontVella8 won by resignation"]

1. Nf3 {[%clk 0:02:50.7]} 1... Nf6 {[%clk 0:02:59.1]} 2. b3 {[%clk 0:02:50.9]}
2... b6 {[%clk 0:02:59.3]} 3. Bb2 {[%clk 0:02:51.8]} 3... Bb7 {[%clk 0:03:00.2]}
4. g3 {[%clk 0:02:52]} 4... g6 {[%clk 0:03:00.7]} 5. Bg2 {[%clk 0:02:52.3]} 5...
Bg7 {[%clk 0:03:01.1]} 6. O-O {[%clk 0:02:52.9]} 6... O-O {[%clk 0:03:01.8]} 7.
c4 {[%clk 0:02:53.5]} 7... e6 {[%clk 0:03:02]} 8. d3 {[%clk 0:02:54.1]} 8... d5
{[%clk 0:03:02.5]} 9. Nbd2 {[%clk 0:02:53.8]} 9... c5 {[%clk 0:03:03.1]} 10. Ne5
{[%clk 0:02:49.5]} 10... Qe7 {[%clk 0:03:03.3]} 11. Ndf3 {[%clk 0:02:49.7]}
11... Rd8 {[%clk 0:03:01.4]} 12. Qc2 {[%clk 0:02:49.8]} 12... d4 {[%clk
0:02:58.1]} 13. e3 {[%clk 0:02:42.5]} 13... dxe3 {[%clk 0:02:55.9]} 14. fxe3
{[%clk 0:02:42.9]} 14... Nc6 {[%clk 0:02:54.4]} 15. Nxc6 {[%clk 0:02:38.6]}
15... Bxc6 {[%clk 0:02:55.3]} 16. Ne5 {[%clk 0:02:39.2]} 16... Bxg2 {[%clk
0:02:52.5]} 17. Qxg2 {[%clk 0:02:40.1]} 17... Rdc8 {[%clk 0:02:14.2]} 18. Rf2
{[%clk 0:02:22.6]} 18... Nh5 {[%clk 0:01:37.5]} 19. Rxf7 {[%clk 0:02:02.7]}
19... Qg5 {[%clk 0:01:35.7]} 20. Rxg7+ {[%clk 0:01:34.1]} 20... Nxg7 {[%clk
0:01:36.6]} 21. Qe4 {[%clk 0:01:30.5]} 21... Qf5 {[%clk 0:01:30.6]} 22. Qb7
{[%clk 0:01:23]} 22... Rf8 {[%clk 0:01:25.9]} 23. Ng4 {[%clk 0:01:17.5]} 23...
Rf7 {[%clk 0:00:39.5]} 24. Qxa8+ {[%clk 0:01:14.7]} 24... Rf8 {[%clk 0:00:40]}
25. Qb7 {[%clk 0:01:15.2]} 25... Rf7 {[%clk 0:00:40.6]} 26. Nh6+ {[%clk
0:01:09.6]} 1-0

[Event "Late-Titled-Tuesday-Blitz-January-16-2024"]
[Site "Chess.com"]
[Date "2024.01.16"]
[Round "5"]
[White "TigrVShlyape"]
[Black "TanitoluwaAps116"]
[Result "1-0"]
[WhiteElo "2948"]
[BlackElo "2729"]
[TimeControl "180+1"]
[EndTime "14:51:14 PST"]
[Termination "TigrVShlyape won by resignation"]

1. e4 {[%clk 0:03:00.9]} 1... c5 {[%clk 0:02:57.3]} 2. Nf3 {[%clk 0:03:00.4]}
2... e6 {[%clk 0:02:56.9]} 3. Nc3 {[%clk 0:02:57.1]} 3... Nc6 {[%clk 0:02:56.3]}
4. d4 {[%clk 0:02:56.7]} 4... cxd4 {[%clk 0:02:57.2]} 5. Nxd4 {[%clk 0:02:57]}
5... Nf6 {[%clk 0:02:57.8]} 6. Ndb5 {[%clk 0:02:56.6]} 6... d6 {[%clk
0:02:57.3]} 7. Bf4 {[%clk 0:02:56.7]} 7... e5 {[%clk 0:02:57.9]} 8. Bg5 {[%clk
0:02:57.2]} 8... a6 {[%clk 0:02:58.4]} 9. Na3 {[%clk 0:02:57.6]} 9... b5 {[%clk
0:02:59]} 10. Nd5 {[%clk 0:02:57.7]} 10... Be7 {[%clk 0:02:59.4]} 11. Bxf6
{[%clk 0:02:58]} 11... Bxf6 {[%clk 0:03:00]} 12. c3 {[%clk 0:02:57.6]} 12... Rb8
{[%clk 0:02:59.9]} 13. Nc2 {[%clk 0:02:57.2]} 13... Bg5 {[%clk 0:03:00.5]} 14.
Be2 {[%clk 0:02:56.5]} 14... O-O {[%clk 0:02:58.9]} 15. O-O {[%clk 0:02:56.6]}
15... Be6 {[%clk 0:02:59.4]} 16. Nce3 {[%clk 0:02:55.6]} 16... g6 {[%clk
0:02:59.5]} 17. Qd3 {[%clk 0:02:53.3]} 17... Kg7 {[%clk 0:02:57.9]} 18. Rfd1
{[%clk 0:02:52]} 18... Qd7 {[%clk 0:02:44.5]} 19. b4 {[%clk 0:02:44.5]} 19... f5
{[%clk 0:02:39.9]} 20. a4 {[%clk 0:02:35.9]} 20... fxe4 {[%clk 0:02:32.3]} 21.
Qxe4 {[%clk 0:02:35.3]} 21... Bf5 {[%clk 0:02:29.8]} 22. Nxf5+ {[%clk
0:02:34.4]} 22... gxf5 {[%clk 0:02:30.6]} 23. Qf3 {[%clk 0:02:23.5]} 23... Kh8
{[%clk 0:02:28.1]} 24. axb5 {[%clk 0:02:22.5]} 24... axb5 {[%clk 0:02:29]} 25.
Qh5 {[%clk 0:02:18.6]} 25... Rg8 {[%clk 0:02:23.8]} 26. g3 {[%clk 0:02:12.3]}
26... e4 {[%clk 0:02:22.8]} 27. Kh1 {[%clk 0:01:53.7]} 27... Ne5 {[%clk
0:02:19.1]} 28. Ra6 {[%clk 0:01:35.8]} 28... Rbf8 {[%clk 0:02:10.1]} 29. Ne3
{[%clk 0:01:30.1]} 29... Qc8 {[%clk 0:01:51]} 30. Ra7 {[%clk 0:01:23]} 30... h6
{[%clk 0:01:37.9]} 31. Rxd6 {[%clk 0:01:22]} 31... Nf7 {[%clk 0:00:58.5]} 32.
Rxf7 {[%clk 0:01:20.7]} 32... Rxf7 {[%clk 0:00:59.4]} 33. Qxf7 {[%clk
0:01:20.6]} 33... Rf8 {[%clk 0:00:50.2]} 34. Qg6 {[%clk 0:01:17]} 34... Qxc3
{[%clk 0:00:49.8]} 35. Rd7 {[%clk 0:01:16.1]} 1-0

[Event "Late-Titled-Tuesday-Blitz-January-16-2024"]
[Site "Chess.com"]
[Date "2024.01.16"]
[Round "5"]
[White "sergeikim"]
[Black "wild3000"]
[Result "0-1"]
[WhiteElo "2557"]
[BlackElo "2394"]
[TimeControl "180+1"]
[EndTime "14:51:17 PST"]
[Termination "wild3000 won by resignation"]

1. d4 {[%clk 0:03:00.9]} 1... Nf6 {[%clk 0:02:59.6]} 2. c4 {[%clk 0:02:59.7]}
2... e6 {[%clk 0:02:59.6]} 3. Nc3 {[%clk 0:02:59.8]} 3... d5 {[%clk 0:02:57.6]}
4. Nf3 {[%clk 0:02:59.2]} 4... Be7 {[%clk 0:02:56.4]} 5. Bf4 {[%clk 0:02:58.9]}
5... O-O {[%clk 0:02:54.7]} 6. e3 {[%clk 0:02:59.1]} 6... c6 {[%clk 0:02:52.6]}
7. c5 {[%clk 0:02:59.1]} 7... Nbd7 {[%clk 0:02:48]} 8. h3 {[%clk 0:02:58.6]}
8... b6 {[%clk 0:02:48.2]} 9. b4 {[%clk 0:02:57.6]} 9... Ne4 {[%clk 0:02:46.2]}
10. Nxe4 {[%clk 0:02:53]} 10... dxe4 {[%clk 0:02:46.3]} 11. Nd2 {[%clk
0:02:53.7]} 11... e5 {[%clk 0:02:41.3]} 12. dxe5 {[%clk 0:02:52.5]} 12... bxc5
{[%clk 0:02:39.9]} 13. Nxe4 {[%clk 0:02:47.6]} 13... cxb4 {[%clk 0:02:32.5]} 14.
Bc4 {[%clk 0:02:47.4]} 14... Nb6 {[%clk 0:02:23.3]} 15. Bb3 {[%clk 0:02:44.5]}
15... a5 {[%clk 0:02:13.9]} 16. Nd6 {[%clk 0:02:28.9]} 16... Ba6 {[%clk
0:01:58.6]} 17. Rc1 {[%clk 0:02:11.7]} 17... Nd5 {[%clk 0:01:36.4]} 18. Bxd5
{[%clk 0:02:03.5]} 18... cxd5 {[%clk 0:01:34.6]} 19. Qxd5 {[%clk 0:02:03.4]}
19... Bxd6 {[%clk 0:01:10.5]} 20. exd6 {[%clk 0:01:59.8]} 20... Rc8 {[%clk
0:01:05.3]} 21. Kd2 {[%clk 0:01:58.3]} 21... Qf6 {[%clk 0:01:01.3]} 22. Qd4
{[%clk 0:01:53.4]} 22... Qe6 {[%clk 0:00:57.5]} 23. Ra1 {[%clk 0:01:30.4]} 23...
Rc4 {[%clk 0:00:49.8]} 24. Qe5 {[%clk 0:01:28.5]} 24... Qg6 {[%clk 0:00:46.4]}
25. Rhc1 {[%clk 0:01:23]} 25... Rxc1 {[%clk 0:00:42.8]} 26. Rxc1 {[%clk
0:01:21.8]} 26... Qd3+ {[%clk 0:00:41.5]} 0-1

[Event "Late-Titled-Tuesday-Blitz-January-16-2024"]
[Site "Chess.com"]
[Date "2024.01.16"]
[Round "5"]
[White "sansanathalia"]
[Black "nikitadovbnya2008"]
[Result "1-0"]
[WhiteElo "2379"]
[BlackElo "2196"]
[TimeControl "180+1"]
[EndTime "14:51:17 PST"]
[Termination "sansanathalia won by resignation"]

1. d4 {[%clk 0:03:00.9]} 1... Nf6 {[%clk 0:02:54]} 2. Nf3 {[%clk 0:03:00.6]}
2... b6 {[%clk 0:02:52]} 3. g3 {[%clk 0:02:59.1]} 3... Bb7 {[%clk 0:02:51.7]} 4.
Bg2 {[%clk 0:02:59.1]} 4... e6 {[%clk 0:02:52]} 5. O-O {[%clk 0:02:58.3]} 5...
g6 {[%clk 0:02:52.1]} 6. c4 {[%clk 0:02:56.5]} 6... Bg7 {[%clk 0:02:52]} 7. Nc3
{[%clk 0:02:56.2]} 7... d6 {[%clk 0:02:52.3]} 8. Re1 {[%clk 0:02:55.2]} 8... Ne4
{[%clk 0:02:50.7]} 9. Qc2 {[%clk 0:02:44.5]} 9... Nxc3 {[%clk 0:02:48.6]} 10.
Qxc3 {[%clk 0:02:41.2]} 10... O-O {[%clk 0:02:49.3]} 11. b3 {[%clk 0:02:37.1]}
11... c5 {[%clk 0:02:49.9]} 12. Bb2 {[%clk 0:02:27.6]} 12... Nc6 {[%clk
0:02:46.2]} 13. Qd2 {[%clk 0:02:21]} 13... Qe7 {[%clk 0:02:38.8]} 14. Rad1
{[%clk 0:02:17.1]} 14... Rad8 {[%clk 0:02:18.7]} 15. d5 {[%clk 0:02:12.2]} 15...
exd5 {[%clk 0:02:15.6]} 16. cxd5 {[%clk 0:02:11.7]} 16... Ne5 {[%clk 0:02:13.1]}
17. Nxe5 {[%clk 0:02:09.3]} 17... Bxe5 {[%clk 0:02:14]} 18. Bxe5 {[%clk
0:02:06]} 18... Qxe5 {[%clk 0:02:14.9]} 19. f4 {[%clk 0:02:05.2]} 19... Qe7
{[%clk 0:02:10.8]} 20. e4 {[%clk 0:02:04.3]} 20... f6 {[%clk 0:02:07.6]} 21. Re3
{[%clk 0:01:55.5]} 21... Rde8 {[%clk 0:02:05.4]} 22. Rde1 {[%clk 0:01:54.4]}
22... Bc8 {[%clk 0:01:56.6]} 23. e5 {[%clk 0:01:46.8]} 23... fxe5 {[%clk
0:01:49.2]} 24. fxe5 {[%clk 0:01:46.6]} 24... dxe5 {[%clk 0:01:50.1]} 25. d6
{[%clk 0:01:46.5]} 25... Qg7 {[%clk 0:01:50]} 26. Bc6 {[%clk 0:01:40.7]} 26...
Bd7 {[%clk 0:01:28.2]} 27. Bxd7 {[%clk 0:01:36.9]} 27... Qxd7 {[%clk 0:01:29.1]}
28. Rxe5 {[%clk 0:01:37]} 28... Rxe5 {[%clk 0:01:23.7]} 29. Rxe5 {[%clk
0:01:35.6]} 29... Rf6 {[%clk 0:01:24.6]} 30. Qd5+ {[%clk 0:01:26.2]} 30... Kf8
{[%clk 0:00:41.9]} 31. Qa8+ {[%clk 0:01:21.6]} 31... Kf7 {[%clk 0:00:42.1]} 32.
Re7+ {[%clk 0:01:20.7]} 32... Qxe7 {[%clk 0:00:43]} 33. dxe7 {[%clk 0:01:21]}
33... Kxe7 {[%clk 0:00:43.9]} 34. Qxa7+ {[%clk 0:01:21.3]} 34... Ke6 {[%clk
0:00:44.5]} 35. Qxb6+ {[%clk 0:01:21.4]} 1-0

[Event "Late-Titled-Tuesday-Blitz-January-16-2024"]
[Site "Chess.com"]
[Date "2024.01.16"]
[Round "5"]
[White "TangerineandLemon25"]
[Black "SergioMoralesG"]
[Result "1-0"]
[WhiteElo "2613"]
[BlackElo "2466"]
[TimeControl "180+1"]
[EndTime "14:51:30 PST"]
[Termination "TangerineandLemon25 won on time"]

1. b3 {[%clk 0:03:00.9]} 1... e5 {[%clk 0:01:12.2]} 2. Bb2 {[%clk 0:02:59.6]}
2... Nc6 {[%clk 0:01:12.7]} 3. d3 {[%clk 0:03:00]} 3... Nf6 {[%clk 0:01:12.1]}
4. Nd2 {[%clk 0:03:00.9]} 4... Be7 {[%clk 0:01:10.9]} 5. g3 {[%clk 0:03:01.8]}
5... O-O {[%clk 0:01:11]} 6. Bg2 {[%clk 0:03:02.7]} 6... d5 {[%clk 0:01:11.2]}
7. e4 {[%clk 0:03:00.8]} 7... d4 {[%clk 0:01:10.1]} 8. Ngf3 {[%clk 0:03:00.9]}
8... h6 {[%clk 0:01:07.2]} 9. O-O {[%clk 0:03:00.5]} 9... a5 {[%clk 0:01:03.2]}
10. a4 {[%clk 0:02:59.5]} 10... Ne8 {[%clk 0:00:54.6]} 11. Nc4 {[%clk
0:02:57.2]} 11... Bf6 {[%clk 0:00:50.9]} 12. Ba3 {[%clk 0:02:54.4]} 12... Nd6
{[%clk 0:00:49.7]} 13. Nxd6 {[%clk 0:02:46.9]} 13... cxd6 {[%clk 0:00:50.6]} 14.
Nd2 {[%clk 0:02:47.1]} 14... g6 {[%clk 0:00:42.9]} 15. f4 {[%clk 0:02:46.2]}
15... Re8 {[%clk 0:00:37.6]} 16. Nc4 {[%clk 0:02:40.7]} 16... Nb4 {[%clk
0:00:37.6]} 17. Qd2 {[%clk 0:02:35]} 17... Bg7 {[%clk 0:00:30.6]} 18. Rf2 {[%clk
0:02:25.3]} 18... Be6 {[%clk 0:00:26.5]} 19. Bxb4 {[%clk 0:02:23.8]} 19... axb4
{[%clk 0:00:22.1]} 20. Qxb4 {[%clk 0:02:24.7]} 20... Ra6 {[%clk 0:00:16.7]} 21.
Qxb7 {[%clk 0:02:23.4]} 21... Bxc4 {[%clk 0:00:15.8]} 22. bxc4 {[%clk
0:02:23.1]} 22... Rb6 {[%clk 0:00:14.6]} 23. Qd5 {[%clk 0:02:23.6]} 23... Qe7
{[%clk 0:00:06.8]} 24. Raf1 {[%clk 0:02:22]} 24... Rf8 {[%clk 0:00:01.7]} 25.
fxe5 {[%clk 0:02:21.1]} 25... dxe5 {[%clk 0:00:02.6]} 26. c5 {[%clk 0:02:20.8]}
26... Rb7 {[%clk 0:00:02.1]} 27. c6 {[%clk 0:02:20.1]} 27... Rc7 {[%clk
0:00:02.2]} 28. Bh3 {[%clk 0:02:20.5]} 28... Rd8 {[%clk 0:00:01.9]} 29. Bd7
{[%clk 0:02:20]} 29... Rf8 {[%clk 0:00:01.5]} 30. a5 {[%clk 0:02:18.6]} 30... h5
{[%clk 0:00:01.5]} 31. a6 {[%clk 0:02:17.8]} 31... h4 {[%clk 0:00:02.2]} 32.
gxh4 {[%clk 0:02:16.6]} 32... Bh6 {[%clk 0:00:02.8]} 33. Rg2 {[%clk 0:02:16.6]}
33... Be3+ {[%clk 0:00:02.9]} 34. Kh1 {[%clk 0:02:16.9]} 34... Kh7 {[%clk
0:00:03.8]} 35. Qa5 {[%clk 0:02:15.1]} 35... Qd8 {[%clk 0:00:02.7]} 36. Qa2
{[%clk 0:02:13.2]} 36... Qxh4 {[%clk 0:00:02.2]} 37. Rxf7+ {[%clk 0:02:11.3]}
37... Kh6 {[%clk 0:00:01.1]} 38. Rg3 {[%clk 0:02:00.6]} 1-0

[Event "Late-Titled-Tuesday-Blitz-January-16-2024"]
[Site "Chess.com"]
[Date "2024.01.16"]
[Round "5"]
[White "tactic"]
[Black "WilliamAlfaroCaracas"]
[Result "1-0"]
[WhiteElo "2543"]
[BlackElo "2241"]
[TimeControl "180+1"]
[EndTime "14:51:34 PST"]
[Termination "tactic won on time"]

1. e4 {[%clk 0:03:00.9]} 1... e5 {[%clk 0:02:54.3]} 2. Nf3 {[%clk 0:03:00.8]}
2... Nc6 {[%clk 0:02:53.4]} 3. Bc4 {[%clk 0:03:01.5]} 3... Nf6 {[%clk
0:02:52.6]} 4. Ng5 {[%clk 0:03:01.7]} 4... d5 {[%clk 0:02:51.9]} 5. exd5 {[%clk
0:03:02.6]} 5... Na5 {[%clk 0:02:49.7]} 6. Bb5+ {[%clk 0:03:03.2]} 6... c6
{[%clk 0:02:49.7]} 7. dxc6 {[%clk 0:03:04.1]} 7... bxc6 {[%clk 0:02:49.8]} 8.
Bd3 {[%clk 0:03:04.9]} 8... Nd5 {[%clk 0:02:45.4]} 9. Nf3 {[%clk 0:03:05.3]}
9... Bd6 {[%clk 0:02:41.4]} 10. O-O {[%clk 0:03:03.9]} 10... O-O {[%clk
0:02:34.2]} 11. Re1 {[%clk 0:02:58.1]} 11... f5 {[%clk 0:02:27.4]} 12. Nxe5
{[%clk 0:02:58.4]} 12... Qf6 {[%clk 0:02:05.3]} 13. Nf3 {[%clk 0:02:58.3]} 13...
g5 {[%clk 0:01:56.8]} 14. c4 {[%clk 0:02:58.5]} 14... Nf4 {[%clk 0:01:53.8]} 15.
Bf1 {[%clk 0:02:58.6]} 15... g4 {[%clk 0:01:32.9]} 16. d4 {[%clk 0:02:59.2]}
16... gxf3 {[%clk 0:01:28.1]} 17. Qxf3 {[%clk 0:03:00.1]} 17... Ne6 {[%clk
0:01:11]} 18. c5 {[%clk 0:02:53.3]} 18... Nxd4 {[%clk 0:00:48.5]} 19. Qc3 {[%clk
0:02:53.2]} 19... Bc7 {[%clk 0:00:45.4]} 20. b4 {[%clk 0:02:45.7]} 20... Rb8
{[%clk 0:00:40.9]} 21. Bb2 {[%clk 0:02:03.1]} 21... Rd8 {[%clk 0:00:06.9]} 22.
Nd2 {[%clk 0:01:41.3]} 22... Qh6 {[%clk 0:00:03.5]} 23. h3 {[%clk 0:01:16.6]}
1-0

[Event "Late-Titled-Tuesday-Blitz-January-16-2024"]
[Site "Chess.com"]
[Date "2024.01.16"]
[Round "5"]
[White "SanchezKelvin"]
[Black "DonJuan_34"]
[Result "0-1"]
[WhiteElo "2566"]
[BlackElo "2425"]
[TimeControl "180+1"]
[EndTime "14:51:40 PST"]
[Termination "DonJuan_34 won by resignation"]

1. e4 {[%clk 0:02:49.1]} 1... e6 {[%clk 0:02:59.8]} 2. d4 {[%clk 0:02:47.5]}
2... d5 {[%clk 0:03:00.3]} 3. e5 {[%clk 0:02:42.6]} 3... c5 {[%clk 0:03:00]} 4.
c3 {[%clk 0:02:42.6]} 4... Nc6 {[%clk 0:03:00.2]} 5. Nf3 {[%clk 0:02:42.5]} 5...
Nge7 {[%clk 0:02:54.9]} 6. Bd3 {[%clk 0:02:40.4]} 6... cxd4 {[%clk 0:02:54.3]}
7. cxd4 {[%clk 0:02:40.5]} 7... Nf5 {[%clk 0:02:54.3]} 8. Bxf5 {[%clk 0:02:40]}
8... exf5 {[%clk 0:02:54.2]} 9. O-O {[%clk 0:02:40.4]} 9... Be6 {[%clk
0:02:53.5]} 10. Nc3 {[%clk 0:02:40]} 10... Be7 {[%clk 0:02:52.6]} 11. Qb3 {[%clk
0:02:28.7]} 11... Qd7 {[%clk 0:02:32.8]} 12. Bg5 {[%clk 0:02:27.3]} 12... Bxg5
{[%clk 0:02:18.7]} 13. Nxg5 {[%clk 0:02:24.7]} 13... Nxd4 {[%clk 0:02:18.5]} 14.
Qd1 {[%clk 0:02:20.6]} 14... Nc6 {[%clk 0:02:17]} 15. f4 {[%clk 0:02:16.9]}
15... O-O {[%clk 0:02:14.1]} 16. Qh5 {[%clk 0:02:01.2]} 16... h6 {[%clk
0:02:11.9]} 17. Rf3 {[%clk 0:01:54.8]} 17... d4 {[%clk 0:02:03.6]} 18. Nb5
{[%clk 0:01:46.6]} 18... Nxe5 {[%clk 0:01:35.7]} 19. fxe5 {[%clk 0:01:30.3]}
19... Qxb5 {[%clk 0:01:35.2]} 20. Re1 {[%clk 0:01:22.9]} 20... d3 {[%clk
0:01:31.9]} 21. Rg3 {[%clk 0:01:12.8]} 21... d2 {[%clk 0:01:31.9]} 22. Rd1
{[%clk 0:01:12.1]} 22... f4 {[%clk 0:01:19.8]} 23. Nxe6 {[%clk 0:00:59.9]} 23...
fxg3 {[%clk 0:01:14.5]} 24. Nxg7 {[%clk 0:00:53.1]} 24... Qb6+ {[%clk
0:01:04.5]} 25. Kh1 {[%clk 0:00:51.1]} 25... Kxg7 {[%clk 0:01:04.1]} 26. Rxd2
{[%clk 0:00:45]} 26... Rad8 {[%clk 0:01:00.7]} 0-1

[Event "Late-Titled-Tuesday-Blitz-January-16-2024"]
[Site "Chess.com"]
[Date "2024.01.16"]
[Round "5"]
[White "rikchessmx"]
[Black "miraitrunks"]
[Result "1-0"]
[WhiteElo "2363"]
[BlackElo "2078"]
[TimeControl "180+1"]
[EndTime "14:51:41 PST"]
[Termination "rikchessmx won by resignation"]

1. e4 {[%clk 0:03:00.9]} 1... e6 {[%clk 0:02:08.1]} 2. d4 {[%clk 0:02:58.3]}
2... d5 {[%clk 0:02:07.9]} 3. Nc3 {[%clk 0:02:58.7]} 3... Bb4 {[%clk 0:02:07.2]}
4. e5 {[%clk 0:02:58.5]} 4... Bxc3+ {[%clk 0:02:07.5]} 5. bxc3 {[%clk
0:02:58.1]} 5... Qd7 {[%clk 0:02:08.4]} 6. a4 {[%clk 0:02:56.7]} 6... b6 {[%clk
0:02:08.6]} 7. Qg4 {[%clk 0:02:55]} 7... f5 {[%clk 0:02:07.1]} 8. Qg3 {[%clk
0:02:54.3]} 8... Ba6 {[%clk 0:02:06.5]} 9. Bxa6 {[%clk 0:02:51]} 9... Nxa6
{[%clk 0:02:07.4]} 10. Nh3 {[%clk 0:02:50.9]} 10... c5 {[%clk 0:02:05.2]} 11.
O-O {[%clk 0:02:49]} 11... Nh6 {[%clk 0:01:48.7]} 12. Bxh6 {[%clk 0:02:45.9]}
12... gxh6 {[%clk 0:01:49.6]} 13. a5 {[%clk 0:02:45.5]} 13... b5 {[%clk
0:01:42.5]} 14. Nf4 {[%clk 0:02:41.7]} 14... O-O-O {[%clk 0:01:20.3]} 15. Rfb1
{[%clk 0:02:37.1]} 15... Rhg8 {[%clk 0:01:19.6]} 16. Qd3 {[%clk 0:02:33.3]}
16... Rg4 {[%clk 0:01:19.1]} 17. g3 {[%clk 0:02:29.4]} 17... c4 {[%clk
0:01:19.3]} 18. Qe3 {[%clk 0:02:22.2]} 18... Rdg8 {[%clk 0:01:15.6]} 19. Rb2
{[%clk 0:02:18.9]} 19... Nc7 {[%clk 0:01:14.5]} 20. a6 {[%clk 0:02:18.7]} 20...
Qe7 {[%clk 0:00:48.2]} 21. Nh5 {[%clk 0:02:13.5]} 21... f4 {[%clk 0:00:42.7]}
22. Nxf4 {[%clk 0:02:07.7]} 22... Qh4 {[%clk 0:00:27.4]} 23. Ng2 {[%clk
0:02:06.7]} 23... Qh5 {[%clk 0:00:24.3]} 24. Ra5 {[%clk 0:02:00.3]} 24... Re4
{[%clk 0:00:20.5]} 25. Qd2 {[%clk 0:01:54.4]} 25... Rf8 {[%clk 0:00:20.2]} 26.
Rbxb5 {[%clk 0:01:52.2]} 26... Re2 {[%clk 0:00:20.1]} 27. Nf4 {[%clk 0:01:40]}
27... Rxf4 {[%clk 0:00:12.5]} 28. Qxf4 {[%clk 0:01:39.2]} 28... Qh3 {[%clk
0:00:11.1]} 29. Qf8+ {[%clk 0:01:35.6]} 29... Kd7 {[%clk 0:00:10.9]} 30. Rb1
{[%clk 0:01:30.8]} 30... Rxc2 {[%clk 0:00:07]} 31. Qd6+ {[%clk 0:01:29.6]} 31...
Kc8 {[%clk 0:00:06.9]} 32. Rc5 {[%clk 0:01:29.2]} 1-0

[Event "Late-Titled-Tuesday-Blitz-January-16-2024"]
[Site "Chess.com"]
[Date "2024.01.16"]
[Round "5"]
[White "ChristopherYoo"]
[Black "FairChess_on_YouTube"]
[Result "1/2-1/2"]
[WhiteElo "2992"]
[BlackElo "3100"]
[TimeControl "180+1"]
[EndTime "14:51:45 PST"]
[Termination "Game drawn by agreement"]

1. Nf3 {[%clk 0:03:00.9]} 1... b5 {[%clk 0:02:58.5]} 2. e4 {[%clk 0:02:59.8]}
2... Bb7 {[%clk 0:02:58.8]} 3. Bxb5 {[%clk 0:02:59.5]} 3... Bxe4 {[%clk
0:02:59]} 4. O-O {[%clk 0:02:59.4]} 4... c6 {[%clk 0:02:59.4]} 5. Ba4 {[%clk
0:02:41.9]} 5... Qa5 {[%clk 0:02:58.7]} 6. Nc3 {[%clk 0:02:39.3]} 6... Bxf3
{[%clk 0:02:58.3]} 7. Qxf3 {[%clk 0:02:40.2]} 7... Nf6 {[%clk 0:02:58.7]} 8. d4
{[%clk 0:02:29.8]} 8... e6 {[%clk 0:02:59]} 9. Bb3 {[%clk 0:02:05.4]} 9... d5
{[%clk 0:02:56.8]} 10. Ne2 {[%clk 0:02:02.8]} 10... Nbd7 {[%clk 0:02:54.4]} 11.
c3 {[%clk 0:01:50.9]} 11... Bd6 {[%clk 0:02:54]} 12. Bc2 {[%clk 0:01:50.5]}
12... O-O {[%clk 0:02:52.7]} 13. Bg5 {[%clk 0:01:42.3]} 13... Rfb8 {[%clk
0:02:44]} 14. b4 {[%clk 0:01:41.8]} 14... Qc7 {[%clk 0:02:42.2]} 15. g3 {[%clk
0:01:39.6]} 15... a5 {[%clk 0:02:41.7]} 16. a3 {[%clk 0:01:39.3]} 16... e5
{[%clk 0:02:37.2]} 17. dxe5 {[%clk 0:01:34.1]} 17... Bxe5 {[%clk 0:02:29.4]} 18.
Nd4 {[%clk 0:01:31.5]} 18... axb4 {[%clk 0:02:02.1]} 19. axb4 {[%clk 0:01:31.3]}
19... Rxa1 {[%clk 0:02:02.5]} 20. Rxa1 {[%clk 0:01:30.2]} 20... c5 {[%clk
0:02:03.1]} 21. bxc5 {[%clk 0:01:26.1]} 21... Qxc5 {[%clk 0:02:04]} 22. Rd1
{[%clk 0:00:51.1]} 22... Rc8 {[%clk 0:02:03.6]} 23. Nf5 {[%clk 0:00:40]} 23...
Qxc3 {[%clk 0:02:00.1]} 24. Qxc3 {[%clk 0:00:19.2]} 24... Rxc3 {[%clk 0:02:01]}
25. Ba4 {[%clk 0:00:16.8]} 25... h6 {[%clk 0:01:18]} 26. Bxf6 {[%clk 0:00:16.6]}
26... Nxf6 {[%clk 0:01:18.6]} 27. Ne7+ {[%clk 0:00:17.1]} 27... Kf8 {[%clk
0:01:17.9]} 28. Nxd5 {[%clk 0:00:17.8]} 28... Ra3 {[%clk 0:01:16.4]} 29. Nxf6
{[%clk 0:00:16.3]} 29... Bxf6 {[%clk 0:01:16.4]} 30. Bc6 {[%clk 0:00:15.4]}
30... Ra1 {[%clk 0:01:16.2]} 31. Rxa1 {[%clk 0:00:14.8]} 31... Bxa1 {[%clk
0:01:17]} 32. Kg2 {[%clk 0:00:14.1]} 1/2-1/2

[Event "Late-Titled-Tuesday-Blitz-January-16-2024"]
[Site "Chess.com"]
[Date "2024.01.16"]
[Round "5"]
[White "JaackCamel"]
[Black "jjbolanos"]
[Result "0-1"]
[WhiteElo "2140"]
[BlackElo "2068"]
[TimeControl "180+1"]
[EndTime "14:51:52 PST"]
[Termination "jjbolanos won by resignation"]

1. d4 {[%clk 0:03:00.9]} 1... d5 {[%clk 0:02:56.5]} 2. c4 {[%clk 0:03:00.9]}
2... e6 {[%clk 0:02:56.1]} 3. Nc3 {[%clk 0:03:00.5]} 3... Nf6 {[%clk 0:02:56.7]}
4. cxd5 {[%clk 0:02:59.2]} 4... exd5 {[%clk 0:02:56.1]} 5. Bg5 {[%clk
0:02:58.9]} 5... Be7 {[%clk 0:02:56.7]} 6. e3 {[%clk 0:02:58.4]} 6... c6 {[%clk
0:02:57.3]} 7. Bd3 {[%clk 0:02:57.6]} 7... Nbd7 {[%clk 0:02:58]} 8. Qc2 {[%clk
0:02:56.9]} 8... h6 {[%clk 0:02:58.7]} 9. Bh4 {[%clk 0:02:56.5]} 9... Nh5 {[%clk
0:02:59.2]} 10. Bxe7 {[%clk 0:02:50.1]} 10... Qxe7 {[%clk 0:03:00.1]} 11. Nge2
{[%clk 0:02:47.7]} 11... O-O {[%clk 0:02:59.5]} 12. O-O-O {[%clk 0:02:44.5]}
12... b5 {[%clk 0:02:49.4]} 13. Ng3 {[%clk 0:02:35.6]} 13... Nxg3 {[%clk
0:02:46.1]} 14. hxg3 {[%clk 0:02:35.5]} 14... Nb6 {[%clk 0:02:46.8]} 15. Ne2
{[%clk 0:02:26.6]} 15... Bd7 {[%clk 0:02:45.5]} 16. Kb1 {[%clk 0:02:19.5]} 16...
a5 {[%clk 0:02:45.6]} 17. Bh7+ {[%clk 0:02:14.3]} 17... Kh8 {[%clk 0:02:43.6]}
18. Bf5 {[%clk 0:02:14.4]} 18... Nc4 {[%clk 0:02:30.3]} 19. Rc1 {[%clk
0:02:06.1]} 19... Qb4 {[%clk 0:01:53.8]} 20. Ka1 {[%clk 0:00:54.2]} 20... Bxf5
{[%clk 0:01:52.1]} 21. Qc3 {[%clk 0:00:54.1]} 21... Qxc3 {[%clk 0:01:50.1]} 22.
Nxc3 {[%clk 0:00:52.7]} 22... a4 {[%clk 0:01:46.6]} 23. Ne2 {[%clk 0:00:36.3]}
23... Nd2 {[%clk 0:01:35.5]} 24. b4 {[%clk 0:00:07]} 24... Nc4 {[%clk
0:01:28.8]} 25. Nf4 {[%clk 0:00:05.1]} 25... a3 {[%clk 0:01:28.1]} 26. g4 {[%clk
0:00:04]} 26... Bxg4 {[%clk 0:01:24.4]} 27. f3 {[%clk 0:00:04.6]} 27... Bf5
{[%clk 0:01:24.3]} 28. g4 {[%clk 0:00:04.7]} 28... Bh7 {[%clk 0:01:22]} 29. Rhe1
{[%clk 0:00:04.3]} 29... Rfe8 {[%clk 0:01:17.4]} 30. Ng2 {[%clk 0:00:03.8]}
30... Ra4 {[%clk 0:01:16.3]} 0-1